fUSD/lending_fUSD_20250209
["ID","MTS","AMOUNT","RATE_DAILY","PERIOD"]
[352446340,1739111466961,-500.0,0.00011301,2]
[352446341,1739111466970,-815.69,0.00011301,2]
[352446342,1739111466980,-500.0,0.00011301,2]
[352446343,1739111466991,-500.0,0.00011301,2]
[352446344,1739111467001,-500.0,0.00011301,2]
[352446345,1739111467010,-500.0,0.00011301,2]
[352446346,1739111467019,-500.0,0.00011301,2]
[352446347,1739111467029,-581.55,0.00011301,2]
[352446348,1739111467039,-500.0,0.00011301,2]
[352446349,1739111467048,-500.0,0.00011301,2]
[352446350,1739111467058,-1254.78,0.00011301,2]
[352446351,1739111467067,-282.25835728,0.00011301,2]
[352446352,1739111467076,-500.0,0.00011301,2]
[352446353,1739111467086,-500.0,0.00011301,2]
[352446354,1739111467098,-500.0,0.00011301,2]
[352446355,1739111467108,-500.0,0.00011301,2]
[352446356,1739111467118,-500.0,0.00011301,2]
[352446357,1739111467127,-892.24,0.00011301,2]
[352446358,1739111467138,-500.0,0.00011301,2]
[352446359,1739111467148,-548.43,0.00011301,2]
[352446360,1739111467157,-500.0,0.00011301,2]
[352446361,1739111467168,-500.0,0.00011301,2]
[352446362,1739111467179,-512.13980657,0.00011301,2]
[352446363,1739111467189,-500.0,0.00011301,2]
[352446364,1739111467199,-500.0,0.00011301,2]
[352446365,1739111467209,-500.0,0.00011301,2]
[352446366,1739111467218,-500.0,0.00011301,2]
[352446367,1739111467228,-500.0,0.00011301,2]
[352446368,1739111467238,-870.56,0.00011301,2]
[352446369,1739111467247,-500.0,0.00011301,2]
[352446370,1739111467257,-702.87,0.00011301,2]
[352446371,1739111467267,-500.0,0.00011301,2]
[352446372,1739111467276,-811.17,0.00011301,2]
[352446373,1739111467286,-580.57,0.00011301,2]
[352446374,1739111467296,-500.0,0.00011301,2]
[352446375,1739111467305,-516.0,0.00011301,2]
[352446376,1739111467315,-500.0,0.00011301,2]
[352446377,1739111467324,-500.0,0.00011301,2]
[352446378,1739111467333,-500.0,0.00011301,2]
[352446379,1739111467346,-795.24,0.00011301,2]
[352446380,1739111467355,-500.0,0.00011301,2]
[352446381,1739111467365,-881.68,0.00011301,2]
[352446382,1739111467375,-500.0,0.00011301,2]
[352446383,1739111467384,-500.0,0.00011301,2]
[352446384,1739111467394,-500.0,0.00011301,2]
[352446385,1739111467403,-500.0,0.00011301,2]
[352446386,1739111467413,-670.56,0.00011301,2]
[352446387,1739111467422,-500.0,0.00011301,2]
[352446388,1739111467432,-705.66,0.00011301,2]
[352446389,1739111467441,-1023.29,0.00011301,2]
[352446390,1739111467451,-640.81,0.00011301,2]
[352446391,1739111467460,-500.0,0.00011301,2]
[352446392,1739111467471,-500.0,0.00011301,2]
[352446393,1739111467480,-500.0,0.00011301,2]
[352446394,1739111467490,-500.0,0.00011301,2]
[352446395,1739111467499,-630.98,0.00011301,2]
[352446396,1739111467508,-500.0,0.00011301,2]
[352446397,1739111467518,-542.86,0.00011301,2]
[352446398,1739111467528,-500.0,0.00011301,2]
[352446399,1739111467538,-1000.0,0.00011301,2]
[352446400,1739111467548,-500.0,0.00011301,2]
[352446401,1739111467558,-654.61,0.00011301,2]
[352446402,1739111467567,-521.92,0.00011301,2]
[352446403,1739111467576,-500.0,0.00011301,2]
[352446404,1739111467585,-500.0,0.00011301,2]
[352446405,1739111467597,-500.0,0.00011301,2]
[352446406,1739111467606,-519.41,0.00011301,2]
[352446407,1739111467616,-500.0,0.00011301,2]
[352446408,1739111467625,-500.0,0.00011301,2]
[352446409,1739111467635,-500.0,0.00011301,2]
[352446410,1739111467645,-542.32,0.00011301,2]
[352446411,1739111467654,-572.6,0.00011301,2]
[352446412,1739111467664,-555.28,0.00011301,2]
[352446413,1739111467674,-500.0,0.00011301,2]
[352446414,1739111467683,-503.28517095,0.00011301,2]
[352446415,1739111467694,-500.0,0.00011301,2]
[352446416,1739111467703,-500.0,0.00011301,2]
[352446417,1739111467714,-500.0,0.00011301,2]
[352446418,1739111467725,-678.37,0.00011301,2]
[352446419,1739111467735,-500.0,0.00011301,2]
[352446420,1739111467745,-500.0,0.00011301,2]
[352446421,1739111467755,-500.0,0.00011301,2]
[352446422,1739111467965,-500.0,0.00011301,2]
[352446423,1739111467975,-500.0,0.00011301,2]
[352446424,1739111467984,-500.0,0.00011301,2]
[352446425,1739111467993,-595.16,0.00011301,2]
[352446426,1739111468002,-291.02,0.00011301,2]
[352446427,1739111468012,-500.0,0.00011301,2]
[352446428,1739111468021,-500.0,0.00011301,2]
[352446429,1739111468030,-500.0,0.00011301,2]
[352446430,1739111468039,-500.0,0.00011301,2]
[352446431,1739111468048,-500.0,0.00011301,2]
[352446432,1739111468057,-606.91,0.00011301,2]
[352446433,1739111468066,-500.0,0.00011301,2]
[352446434,1739111468076,-500.0,0.00011301,2]
[352446435,1739111468085,-500.0,0.00011301,2]
[352446436,1739111468095,-500.0,0.00011301,2]
[352446437,1739111468104,-569.4,0.00011301,2]
[352446438,1739111468114,-500.0,0.00011301,2]
[352446439,1739111468123,-500.0,0.00011301,2]
[352446440,1739111468132,-760.21,0.00011301,2]
[352446441,1739111468142,-500.0,0.00011301,2]
[352446442,1739111468151,-500.0,0.00011301,2]
[352446443,1739111468160,-500.0,0.00011301,2]
[352446444,1739111468170,-500.0,0.00011301,2]
[352446445,1739111468179,-514.96,0.00011301,2]
[352446446,1739111468189,-500.0,0.00011301,2]
[352446447,1739111468198,-500.0,0.00011301,2]
[352446448,1739111468208,-500.0,0.00011302,2]
[352446449,1739111468218,-500.0,0.00011302,2]
[352446450,1739111468227,-737.84,0.00011302,2]
[352446451,1739111468237,-500.0,0.00011302,2]
[352446452,1739111468246,-500.0,0.00011302,2]
[352446453,1739111468256,-500.0,0.00011302,2]
[352446454,1739111468265,-500.0,0.00011302,2]
[352446455,1739111468275,-500.0,0.00011302,2]
[352446456,1739111468285,-500.0,0.00011302,2]
[352446457,1739111468294,-500.0,0.00011302,2]
[352446458,1739111468304,-500.0,0.00011302,2]
[352446459,1739111468313,-500.0,0.00011302,2]
[352446460,1739111468323,-500.0,0.00011302,2]
[352446461,1739111468332,-500.0,0.00011302,2]
[352446462,1739111468342,-545.78,0.00011302,2]
[352446463,1739111468351,-525.16,0.00011302,2]
[352446464,1739111468361,-500.0,0.00011302,2]
[352446465,1739111468371,-500.0,0.00011302,2]
[352446466,1739111468381,-557.89644267,0.00011302,2]
[352446467,1739111468391,-500.0,0.00011302,2]
[352446468,1739111468400,-500.0,0.00011302,2]
[352446469,1739111468410,-564.38,0.00011302,2]
[352446470,1739111468420,-500.0,0.00011302,2]
[352446471,1739111468430,-500.0,0.00011302,2]
[352446472,1739111468439,-646.28,0.00011302,2]
[352446473,1739111468449,-500.0,0.00011302,2]
[352446474,1739111468459,-500.0,0.00011302,2]
[352446475,1739111468472,-500.0,0.00011302,2]
[352446476,1739111468482,-500.0,0.00011302,2]
[352446477,1739111468492,-514.34,0.00011302,2]
[352446478,1739111468501,-500.0,0.00011302,2]
[352446479,1739111468511,-500.0,0.00011302,2]
[352446480,1739111468522,-500.0,0.00011302,2]
[352446481,1739111468531,-500.0,0.00011302,2]
[352446482,1739111468541,-500.0,0.00011302,2]
[352446483,1739111468551,-634.574762,0.00011302,2]
[352446484,1739111468561,-566.93,0.00011302,2]
[352446485,1739111468571,-500.0,0.00011302,2]
[352446486,1739111468580,-586.39284,0.00011302,2]
[352446487,1739111468590,-500.0,0.00011302,2]
[352446488,1739111468601,-993.58,0.00011302,2]
[352446489,1739111468611,-610.23,0.00011302,2]
[352446490,1739111468620,-500.0,0.00011302,2]
[352446491,1739111468630,-500.0,0.00011302,2]
[352446492,1739111468639,-596.35,0.00011302,2]
[352446493,1739111468648,-618.07,0.00011302,2]
[352446494,1739111468658,-500.0,0.00011302,2]
[352446495,1739111468668,-521.73,0.00011302,2]
[352446496,1739111468677,-500.0,0.00011302,2]
[352446497,1739111468687,-511.97,0.00011302,2]
[352446498,1739111468696,-500.0,0.00011302,2]
[352446499,1739111468705,-500.0,0.00011302,2]
[352446500,1739111468714,-721.78,0.00011302,2]
[352446501,1739111468723,-765.52,0.00011302,2]
[352446502,1739111468732,-1295.36,0.00011302,2]
[352446503,1739111468741,-1458.2,0.00011302,2]
[352446504,1739111468751,-500.0,0.00011302,2]
[352446505,1739111468760,-648.67,0.00011302,2]
[352446506,1739111468770,-585.91,0.00011302,2]
[352446507,1739111468780,-500.0,0.00011302,2]
[352446508,1739111468792,-803.01,0.00011302,2]
[352446509,1739111468802,-500.0,0.00011302,2]
[352446510,1739111468811,-500.0,0.00011302,2]
[352446511,1739111468821,-318.64361944,0.00011302,2]
[352446512,1739111468830,-581.92,0.00011302,2]
[352446513,1739111468839,-526.62,0.00011302,2]
[352446514,1739111468850,-500.0,0.00011302,2]
[352446515,1739111468859,-500.0,0.00011302,2]
[352446516,1739111468869,-500.0,0.00011302,2]
[352446517,1739111468878,-428.05853119,0.00011303,2]
[352446518,1739111468888,-500.0,0.00011303,2]
[352446519,1739111468899,-1080.6467561,0.00011348,2]
[352446520,1739111468910,-150.0,0.00011362,2]
[352446521,1739111468919,-500.0,0.00011369,2]
[352446522,1739111468928,-500.0,0.00011381,2]
[352446523,1739111468937,-2000.0,0.00011381,2]
[352446524,1739111468947,-500.0,0.00011381,2]
[352446525,1739111468957,-200.0,0.00011381,2]
[352446526,1739111468966,-382.60354011,0.00011397,2]
[352446527,1739111468976,-18264.12168978,0.00011426,2]
[352446528,1739111468987,-500.0,0.00011438,2]
[352446529,1739111468996,-177.4,0.00011438,2]
[352446530,1739111469006,-500.0,0.00011438,2]
[352446531,1739111469015,-500.0,0.00011438,2]
[352446532,1739111469028,-179.12,0.00011438,2]
[352446533,1739111469038,-500.0,0.00011438,2]
[352446534,1739111469047,-315.62068087,0.00011438,2]
[352446535,1739111469056,-500.0,0.00011438,2]
[352446536,1739111469065,-500.0,0.00011438,2]
[352446537,1739111469075,-500.0,0.00011438,2]
[352446538,1739111469084,-1200.0,0.00011438,2]
[352446539,1739111469092,-500.0,0.00011438,2]
[352446540,1739111469102,-500.0,0.00011438,2]
[352446541,1739111469111,-339.72813355,0.00011438,2]
[352446542,1739111469121,-463.17013555,0.00011438,2]
[352446543,1739111469130,-500.0,0.00011438,2]
[352446544,1739111469140,-500.0,0.00011438,2]
[352446545,1739111469149,-500.0,0.00011438,2]
[352446546,1739111469158,-500.0,0.00011438,2]
[352446547,1739111469168,-500.0,0.00011438,2]
[352446548,1739111469177,-500.0,0.00011438,2]
[352446549,1739111469187,-500.0,0.00011438,2]
[352446550,1739111469196,-500.0,0.00011438,2]
[352446551,1739111469206,-500.0,0.00011438,2]
[352446552,1739111469215,-500.0,0.00011438,2]
[352446553,1739111469224,-500.0,0.00011438,2]
[352446554,1739111469233,-500.0,0.00011438,2]
[352446555,1739111469243,-500.0,0.00011438,2]
[352446556,1739111469252,-500.0,0.00011438,2]
[352446557,1739111469261,-500.0,0.00011438,2]
[352446558,1739111469270,-500.0,0.00011438,2]
[352446559,1739111469279,-500.0,0.00011438,2]
[352446560,1739111469288,-500.0,0.00011438,2]
[352446561,1739111469297,-500.0,0.00011438,2]
[352446562,1739111469306,-500.0,0.00011438,2]
[352446563,1739111469315,-500.0,0.00011438,2]
[352446564,1739111469324,-500.0,0.00011438,2]
[352446565,1739111469334,-500.0,0.00011438,2]
[352446566,1739111469343,-500.0,0.00011438,2]
[352446567,1739111469352,-500.0,0.00011438,2]
[352446568,1739111469362,-500.0,0.00011438,2]
[352446569,1739111469371,-732.99,0.00011438,2]
[352446570,1739111469380,-500.0,0.00011438,2]
[352446571,1739111469389,-682.96,0.00011438,2]
[352446572,1739111469399,-894.51,0.00011438,2]
[352446573,1739111469408,-500.0,0.00011438,2]
[352446574,1739111469417,-815.69,0.00011438,2]
[352446575,1739111469427,-500.0,0.00011438,2]
[352446576,1739111469436,-500.0,0.00011438,2]
[352446577,1739111469446,-581.55,0.00011438,2]
[352446578,1739111469455,-500.0,0.00011438,2]
[352446579,1739111469465,-1254.78,0.00011438,2]
[352446580,1739111469478,-500.0,0.00011438,2]
[352446581,1739111469487,-892.24,0.00011438,2]
[352446582,1739111469496,-602.52026225,0.00011438,2]
[352446583,1739111469507,-548.43,0.00011438,2]
[352446584,1739111469516,-500.0,0.00011438,2]
[352446585,1739111469525,-500.0,0.00011438,2]
[352446586,1739111469536,-500.0,0.00011438,2]
[352446587,1739111469546,-500.0,0.00011438,2]
[352446588,1739111469556,-500.0,0.00011438,2]
[352446589,1739111469565,-870.56,0.00011438,2]
[352446590,1739111469573,-500.0,0.00011438,2]
[352446591,1739111469582,-702.87,0.00011438,2]
[352446592,1739111469590,-500.0,0.00011438,2]
[352446593,1739111469599,-811.17,0.00011438,2]
[352446594,1739111469609,-580.57,0.00011438,2]
[352446595,1739111469618,-500.0,0.00011438,2]
[352446596,1739111469627,-516.0,0.00011438,2]
[352446597,1739111469637,-500.0,0.00011438,2]
[352446598,1739111469646,-795.24,0.00011438,2]
[352446599,1739111469656,-500.0,0.00011438,2]
[352446600,1739111469665,-881.68,0.00011438,2]
[352446601,1739111469675,-500.0,0.00011438,2]
[352446602,1739111469685,-500.0,0.00011438,2]
[352446603,1739111469694,-500.0,0.00011438,2]
[352446604,1739111469704,-670.56,0.00011438,2]
[352446605,1739111469713,-500.0,0.00011438,2]
[352446606,1739111469722,-705.66,0.00011438,2]
[352446607,1739111469731,-1023.29,0.00011438,2]
[352446608,1739111469740,-640.81,0.00011438,2]
[352446609,1739111469750,-500.0,0.00011438,2]
[352446610,1739111469760,-500.0,0.00011438,2]
[352446611,1739111469769,-500.0,0.00011438,2]
[352446612,1739111469778,-630.98,0.00011438,2]
[352446613,1739111469788,-542.86,0.00011438,2]
[352446614,1739111469798,-1000.0,0.00011438,2]
[352446615,1739111469807,-500.0,0.00011438,2]
[352446616,1739111469816,-654.61,0.00011438,2]
[352446617,1739111469825,-521.92,0.00011438,2]
[352446618,1739111469834,-500.0,0.00011438,2]
[352446619,1739111469843,-500.0,0.00011438,2]
[352446620,1739111469852,-519.41,0.00011438,2]
[352446621,1739111469861,-500.0,0.00011438,2]
[352446622,1739111469871,-500.0,0.00011438,2]
[352446623,1739111469880,-542.32,0.00011438,2]
[352446624,1739111469889,-572.6,0.00011438,2]
[352446625,1739111469899,-555.28,0.00011438,2]
[352446626,1739111469908,-500.0,0.00011438,2]
[352446627,1739111469917,-500.0,0.00011438,2]
[352446628,1739111469927,-678.37,0.00011438,2]
[352446629,1739111469936,-500.0,0.00011438,2]
[352446630,1739111469945,-500.0,0.00011438,2]
[352446631,1739111469954,-500.0,0.00011438,2]
[352446632,1739111469963,-500.0,0.00011438,2]
[352446633,1739111469972,-500.0,0.00011438,2]
[352446634,1739111469981,-595.16,0.00011438,2]
[352446635,1739111469990,-500.0,0.00011438,2]
[352446636,1739111469999,-500.0,0.00011438,2]
[352446637,1739111470008,-500.0,0.00011438,2]
[352446638,1739111470017,-372.22,0.00011438,2]
[352446639,1739111470026,-606.91,0.00011438,2]
[352446640,1739111470035,-500.0,0.00011438,2]
[352446641,1739111470044,-500.0,0.00011438,2]
[352446642,1739111470053,-569.4,0.00011438,2]
[352446643,1739111470062,-500.0,0.00011438,2]
[352446644,1739111470072,-760.21,0.00011438,2]
[352446645,1739111470081,-500.0,0.00011438,2]
[352446646,1739111470090,-500.0,0.00011438,2]
[352446647,1739111470101,-514.96,0.00011438,2]
[352446648,1739111470110,-500.0,0.00011438,2]
[352446649,1739111470120,-500.0,0.00011439,2]
[352446650,1739111470130,-500.0,0.00011439,2]
[352446651,1739111470139,-737.84,0.00011439,2]
[352446652,1739111470148,-500.0,0.00011439,2]
[352446653,1739111470159,-1000.0,0.00011439,2]
[352446654,1739111470168,-500.0,0.00011439,2]
[352446655,1739111470177,-500.0,0.00011439,2]
[352446656,1739111470186,-500.0,0.00011439,2]
[352446657,1739111470195,-500.0,0.00011439,2]
[352446658,1739111470205,-500.0,0.00011439,2]
[352446659,1739111470266,-636.42,0.00011439,2]
[352446660,1739111470275,-500.0,0.00011439,2]
[352446661,1739111470285,-500.0,0.00011439,2]
[352446662,1739111470294,-500.0,0.00011439,2]
[352446663,1739111470303,-500.0,0.00011439,2]
[352446664,1739111470312,-545.78,0.00011439,2]
[352446665,1739111470322,-525.16,0.00011439,2]
[352446666,1739111470331,-265.63659641,0.00011439,2]
[352446667,1739111470339,-500.0,0.00011439,2]
[352446668,1739111470350,-500.0,0.00011439,2]
[352446669,1739111470359,-500.0,0.00011439,2]
[352446670,1739111470367,-564.38,0.00011439,2]
[352446671,1739111470377,-500.0,0.00011439,2]
[352446672,1739111470386,-500.0,0.00011439,2]
[352446673,1739111470395,-646.28,0.00011439,2]
[352446674,1739111470406,-500.0,0.00011439,2]
[352446675,1739111470414,-500.0,0.00011439,2]
[352446676,1739111470424,-528.05429912,0.00011439,2]
[352446677,1739111470433,-500.0,0.00011439,2]
[352446678,1739111470442,-514.34,0.00011439,2]
[352446679,1739111470452,-500.0,0.00011439,2]
[352446680,1739111470461,-500.0,0.00011439,2]
[352446681,1739111470476,-500.0,0.00011439,2]
[352446682,1739111470486,-500.0,0.00011439,2]
[352446683,1739111470495,-500.0,0.00011439,2]
[352446684,1739111470505,-634.574762,0.00011439,2]
[352446685,1739111470516,-566.93,0.00011439,2]
[352446686,1739111470525,-500.0,0.00011439,2]
[352446687,1739111470534,-586.39284,0.00011439,2]
[352446688,1739111470544,-500.0,0.00011439,2]
[352446689,1739111470554,-993.58,0.00011439,2]
[352446690,1739111470563,-610.23,0.00011439,2]
[352446691,1739111470572,-487.7457941,0.00011439,2]
[352446692,1739111470582,-500.0,0.00011439,2]
[352446693,1739111470591,-596.35,0.00011439,2]
[352446694,1739111470600,-618.07,0.00011439,2]
[352446695,1739111470609,-500.0,0.00011439,2]
[352446696,1739111470618,-521.73,0.00011439,2]
[352446697,1739111470627,-500.0,0.00011439,2]
[352446698,1739111470636,-511.97,0.00011439,2]
[352446699,1739111470645,-500.0,0.00011439,2]
[352446700,1739111470655,-500.0,0.00011439,2]
[352446701,1739111470664,-721.78,0.00011439,2]
[352446702,1739111470673,-765.52,0.00011439,2]
[352446703,1739111470682,-1295.36,0.00011439,2]
[352446704,1739111470692,-1458.2,0.00011439,2]
[352446705,1739111470701,-500.0,0.00011439,2]
[352446706,1739111470710,-648.67,0.00011439,2]
[352446707,1739111470719,-585.91,0.00011439,2]
[352446708,1739111470728,-500.0,0.00011439,2]
[352446709,1739111470736,-803.01,0.00011439,2]
[352446710,1739111470746,-500.0,0.00011439,2]
[352446711,1739111470755,-500.0,0.00011439,2]
[352446712,1739111470764,-581.92,0.00011439,2]
[352446713,1739111470773,-526.62,0.00011439,2]
[352446714,1739111470783,-500.0,0.00011439,2]
[352446715,1739111470791,-500.0,0.00011439,2]
[352446716,1739111470801,-500.0,0.00011439,2]
[352446717,1739111470810,-442.4482415,0.0001144,2]
[352446718,1739111470820,-150.0,0.00011442,2]
[352446719,1739111470829,-150.0,0.00011491,2]
[352446720,1739111470838,-583.71534271,0.00011506,2]
[352446721,1739111470848,-500.0,0.00011506,2]
[352446722,1739111470858,-2751.0,0.00011507,2]
[352446723,1739111470872,-189.31841004,0.00011558,2]
[352446724,1739111470881,-1000.0,0.00011568,2]
[352446725,1739111470892,-500.0,0.00011575,2]
[352446726,1739111470903,-500.0,0.00011575,2]
[352446727,1739111470912,-500.0,0.00011575,2]
[352446728,1739111470922,-500.0,0.00011575,2]
[352446729,1739111470931,-282.1215844,0.00011575,2]
[352446730,1739111470941,-500.0,0.00011575,2]
[352446731,1739111470950,-500.0,0.00011575,2]
[352446732,1739111470960,-1200.0,0.00011575,2]
[352446733,1739111470969,-500.0,0.00011575,2]
[352446734,1739111470979,-500.0,0.00011575,2]
[352446735,1739111470988,-500.0,0.00011575,2]
[352446736,1739111470997,-500.0,0.00011575,2]
[352446737,1739111471006,-500.0,0.00011575,2]
[352446738,1739111471016,-500.0,0.00011575,2]
[352446739,1739111471025,-500.0,0.00011575,2]
[352446740,1739111471034,-500.0,0.00011575,2]
[352446741,1739111471043,-500.0,0.00011575,2]
[352446742,1739111471053,-500.0,0.00011575,2]
[352446743,1739111471063,-500.0,0.00011575,2]
[352446744,1739111471072,-500.0,0.00011575,2]
[352446745,1739111471081,-580.73,0.00011575,2]
[352446746,1739111471091,-319.31,0.00011575,2]
[352446747,1739111471101,-500.0,0.00011575,2]
[352446748,1739111471111,-500.0,0.00011575,2]
[352446749,1739111471121,-500.0,0.00011575,2]
[352446750,1739111471132,-500.0,0.00011575,2]
[352446751,1739111471141,-500.0,0.00011575,2]
[352446752,1739111471151,-500.0,0.00011575,2]
[352446753,1739111471160,-500.0,0.00011575,2]
[352446754,1739111471170,-500.0,0.00011575,2]
[352446755,1739111471179,-500.0,0.00011575,2]
[352446756,1739111471188,-500.0,0.00011575,2]
[352446757,1739111471198,-500.0,0.00011575,2]
[352446758,1739111471208,-206.48,0.00011575,2]
[352446759,1739111471216,-500.0,0.00011575,2]
[352446760,1739111471227,-500.0,0.00011575,2]
[352446761,1739111471236,-732.99,0.00011575,2]
[352446762,1739111471245,-500.0,0.00011575,2]
[352446763,1739111471254,-682.96,0.00011575,2]
[352446764,1739111471263,-894.51,0.00011575,2]
[352446765,1739111471272,-500.0,0.00011575,2]
[352446766,1739111471281,-815.69,0.00011575,2]
[352446767,1739111471291,-500.0,0.00011575,2]
[352446768,1739111471300,-500.0,0.00011575,2]
[352446769,1739111471309,-581.55,0.00011575,2]
[352446770,1739111471318,-500.0,0.00011575,2]
[352446771,1739111471327,-1254.78,0.00011575,2]
[352446772,1739111471337,-500.0,0.00011575,2]
[352446773,1739111471346,-892.24,0.00011575,2]
[352446774,1739111471356,-548.43,0.00011575,2]
[352446775,1739111471367,-500.0,0.00011575,2]
[352446776,1739111471378,-500.0,0.00011575,2]
[352446777,1739111471387,-500.0,0.00011575,2]
[352446778,1739111471397,-500.0,0.00011575,2]
[352446779,1739111471407,-500.0,0.00011575,2]
[352446780,1739111471415,-870.56,0.00011575,2]
[352446781,1739111471424,-500.0,0.00011575,2]
[352446782,1739111471434,-702.87,0.00011575,2]
[352446783,1739111471443,-500.0,0.00011575,2]
[352446784,1739111471452,-811.17,0.00011575,2]
[352446785,1739111471461,-580.57,0.00011575,2]
[352446786,1739111471472,-500.0,0.00011575,2]
[352446787,1739111471482,-516.0,0.00011575,2]
[352446788,1739111471491,-500.0,0.00011575,2]
[352446789,1739111471500,-795.24,0.00011575,2]
[352446790,1739111471510,-500.0,0.00011575,2]
[352446791,1739111471519,-881.68,0.00011575,2]
[352446792,1739111471527,-500.0,0.00011575,2]
[352446793,1739111471537,-500.0,0.00011575,2]
[352446794,1739111471547,-670.56,0.00011575,2]
[352446795,1739111471555,-500.0,0.00011575,2]
[352446796,1739111471565,-500.0,0.00011575,2]
[352446797,1739111471573,-705.66,0.00011575,2]
[352446798,1739111471583,-1023.29,0.00011575,2]
[352446799,1739111471592,-640.81,0.00011575,2]
[352446800,1739111471601,-500.0,0.00011575,2]
[352446801,1739111471610,-500.0,0.00011575,2]
[352446802,1739111471619,-500.0,0.00011575,2]
[352446803,1739111471628,-630.98,0.00011575,2]
[352446804,1739111471639,-542.86,0.00011575,2]
[352446805,1739111471648,-1000.0,0.00011575,2]
[352446806,1739111471658,-500.0,0.00011575,2]
[352446807,1739111471667,-654.61,0.00011575,2]
[352446808,1739111471676,-521.92,0.00011575,2]
[352446809,1739111471686,-500.0,0.00011575,2]
[352446810,1739111471695,-500.0,0.00011575,2]
[352446811,1739111471704,-519.41,0.00011575,2]
[352446812,1739111471713,-500.0,0.00011575,2]
[352446813,1739111471722,-500.0,0.00011575,2]
[352446814,1739111471731,-542.32,0.00011575,2]
[352446815,1739111471741,-572.6,0.00011575,2]
[352446816,1739111471751,-555.28,0.00011575,2]
[352446817,1739111471759,-500.0,0.00011575,2]
[352446818,1739111471769,-500.0,0.00011575,2]
[352446819,1739111471778,-678.37,0.00011575,2]
[352446820,1739111471787,-500.0,0.00011575,2]
[352446821,1739111471796,-499.96638705,0.00011575,2]
[352446822,1739111471806,-500.0,0.00011575,2]
[352446823,1739111471815,-500.0,0.00011575,2]
[352446824,1739111471823,-500.0,0.00011575,2]
[352446825,1739111471833,-595.16,0.00011575,2]
[352446826,1739111471842,-500.0,0.00011575,2]
[352446827,1739111471851,-503.03994244,0.00011575,2]
[352446828,1739111471861,-500.0,0.00011575,2]
[352446829,1739111471871,-606.91,0.00011575,2]
[352446830,1739111471881,-500.0,0.00011575,2]
[352446831,1739111471891,-500.0,0.00011575,2]
[352446832,1739111471899,-569.4,0.00011575,2]
[352446833,1739111471908,-500.0,0.00011575,2]
[352446834,1739111471918,-760.21,0.00011575,2]
[352446835,1739111471928,-500.0,0.00011575,2]
[352446836,1739111471937,-500.0,0.00011575,2]
[352446837,1739111471946,-514.96,0.00011575,2]
[352446838,1739111471955,-500.0,0.00011575,2]
[352446839,1739111471965,-500.0,0.00011576,2]